{"text_format":"3","workbook":"xlsx","n_sheets":1,"sheets":["Лист2 (2)"],"read":"whole","date_system":"1900"}

{"sheet":"Лист2 (2)","index":0,"n_rows":13,"n_cols":39,"rows_kept":13,"merged":[[0,21,0,23],[1,2,1,20],[2,0,6,0],[2,1,6,1],[2,2,6,2],[2,3,6,3],[2,4,6,4],[2,5,6,5],[2,6,6,6],[2,7,5,10],[2,11,6,11],[2,12,6,12],[2,13,4,14],[2,15,4,16],[2,17,4,18],[2,19,6,19],[2,20,6,20],[2,21,6,21],[2,22,4,23],[2,24,6,24],[5,13,6,13],[5,14,6,14],[5,15,6,15],[5,16,6,16],[5,17,6,17],[5,18,6,18],[5,22,6,22],[5,23,6,23],[7,7,7,10],[7,13,7,14],[7,15,7,16],[7,17,7,18],[7,22,7,23]]}
[{"$nulls":21},"Приложение"]
[null,null,"Реестр данных состояния антитеррористической защищенности объектов (территорий)\nспорта Республики Татарстан"]
["№ п/п","Муниципальный район","Виды объектов  ","Количество объектов, подлежащих антитеррористической защите ","Количество объектов  с паспортом безопасности","количество обследованных объектов (территорий)","год обследования","Присвоенная категория",{"$nulls":3},"Количество объектов  без паспорта безопасности","Количество объектов, имеющих актуальный паспорт безопасности","Количество объектов  (из общего числа объектов), состояние которых изучалось ",null,"Количество мероприятий, \nпо результатам которых состояние признано\n",null,"Количество объектов  (из общего числа), состояние которых \nне изучалось\n",null,"Количество объектов, состояние которых приведено в соответствие с требованиями к АТЗ в отчетном году  ","Количество предотвращенных террористических актов на объектах ","Количество совершенных террористических актов на объектах ","Количество объектов в отчетном году",null,"поменялась эксплуатир организация"]
[]
[{"$nulls":26},{"$f":"#REF!-#REF!","v":{"$error":"#REF!"}}]
[{"$nulls":13},"в прошедшем году","в отчетном году ","удовлетворительным","неудовлетворительным","в прошедшем году","в отчетном году ",{"$nulls":3},"выведенных из эксплуатации","введенных в эксплуатацию"]
[{"$nulls":7},1,2,3,4,{"$nulls":15},{"$f":"AA9+AL8","v":{"$error":"#REF!"}}]
[1,2,3,4,5,null,null,6,{"$nulls":3},7,8,9,null,10,null,11,null,12,13,14,15,{"$nulls":14},{"$f":"AC9+AF9+AI9+AL9","v":{"$error":"#REF!"}}]
[1,"Муслюмовский","УСЗ",1,1,0,0,0,1,0,0,0,1,0,1,20,0,0,0,1,0,0,0,0,null,null,{"$f":"SUM(#REF!)","v":{"$error":"#REF!"}},null,{"$f":"SUM(#REF!)","v":{"$error":"#REF!"}},null,null,{"$f":"SUM(#REF!)","v":{"$error":"#REF!"}},{"$f":"SUM(#REF!)","v":{"$error":"#REF!"}},null,{"$f":"SUM(#REF!)+#REF!","v":{"$error":"#REF!"}},null,null,{"$f":"SUM(#REF!)","v":{"$error":"#REF!"}},{"$f":"SUM(#REF!)","v":{"$error":"#REF!"}}]
[2,null,"ПБ \"Тамчы\"",1,1,0,0,0,0,1,0,0,1,0,1,16,0,0,0,1,0,0,0,0]
[3,null,"Блочная модульна база",1,0,null,null,0,0,0,0,1,0,0,0,5,0,1,1,0,0,0,0,0]
[3,null,"СОК \"Юность\"",1,1,0,0,0,0,0,1,0,1,0,0,12,0,0,0,1,0,0,0,0]
[4,"Всего","Спорт",{"$f":"SUM(D9:D12)","v":4},{"$f":"SUM(E9:E12)","v":3},null,null,{"$f":"SUM(H9:H12)","v":0},1,1,1,1,3,0,2,{"$f":"SUM(P9:P12)","v":53},0,1,1,3,0,0,0,0]